fUSD/lending_fUSD_20250209
["ID","MTS","AMOUNT","RATE_DAILY","PERIOD"]
[352483886,1739135436703,-523.76131937,0.00013797,2]
[352483887,1739135436713,-313.22814879,0.00013849,2]
[352483888,1739135436722,-449.2,0.00014342,2]
[352483889,1739135436732,-5556.0,0.000144,2]
[352483890,1739135436741,-1059.0,0.000145,2]
[352483891,1739135436751,-161.87,0.00014634,2]
[352483892,1739135436760,-5555.0,0.000147,3]
[352483893,1739135436770,-313.22814879,0.00014834,2]
[352483894,1739135436779,-1000.0,0.00014869,2]
[352483895,1739135436789,-600.0,0.00015,2]
[352483896,1739135436798,-5555.0,0.00015,5]
[352483897,1739135436809,-10310.93,0.00015214,2]
[352483898,1739135436818,-1059.0,0.00015224,2]
[352483899,1739135436828,-852.75,0.00015407,2]
[352483900,1739135436837,-500.0,0.00015499,2]
[352483901,1739135436846,-388.19453821,0.00015499,2]
[352483902,1739135436856,-500.0,0.00015499,2]
[352483903,1739135436867,-11727.0,0.000155,2]
[352483904,1739135436876,-449.2,0.00015776,2]
[352483905,1739135436886,-313.22814879,0.00015818,2]
[352483906,1739135436896,-500.0,0.00015849,2]
[352483907,1739135436905,-1200.0,0.00015849,2]
[352483908,1739135436915,-1100.0,0.00015849,2]
[352483909,1739135436924,-699.51,0.00015911,2]
[352483910,1739135436933,-1059.0,0.00015986,2]
[352483911,1739135436944,-6274.51,0.00016116,2]
[352483912,1739135436953,-1000.0,0.00016356,2]
[352483913,1739135436963,-704.76,0.00016658,30]
[352483914,1739135436973,-500.0,0.00016699,2]
[352483915,1739135436985,-500.0,0.00016699,2]
[352483916,1739135436995,-500.0,0.00016699,2]
[352483917,1739135437005,-500.0,0.00016699,2]
[352483918,1739135437015,-675.73,0.00016699,2]
[352483919,1739135437025,-957.93,0.00016699,2]
[352483920,1739135437034,-500.0,0.00016699,2]
[352483921,1739135437044,-500.0,0.00016699,2]
[352483922,1739135437055,-3466.66,0.000167,7]
[352483923,1739135437064,-176.34,0.00016712,2]
[352483924,1739135437073,-1059.0,0.00016785,2]
[352483925,1739135437083,-194.84,0.00016813,2]
[352483926,1739135437092,-500.0,0.00016836,2]
[352483927,1739135437103,-500.0,0.00016836,2]
[352483928,1739135437112,-500.0,0.00016836,2]
[352483929,1739135437122,-957.93,0.00016836,2]
[352483930,1739135437131,-500.0,0.00016836,2]
[352483931,1739135437141,-228.15,0.00016836,2]
[352483932,1739135437150,-500.0,0.00016843,2]
[352483933,1739135437159,-500.0,0.00016899,2]
[352483934,1739135437169,-500.0,0.00016899,2]
[352483935,1739135437178,-500.0,0.00016899,2]
[352483936,1739135437187,-500.0,0.00016899,2]
[352483937,1739135437197,-500.0,0.00016899,2]
[352483938,1739135437206,-500.0,0.00016899,2]
[352483939,1739135437215,-500.0,0.00016899,2]
[352483940,1739135437225,-500.0,0.00016899,2]
[352483941,1739135437235,-500.0,0.00016899,2]
[352483942,1739135437244,-572.69144947,0.00016899,2]
[352483943,1739135437254,-500.0,0.00016899,2]
[352483944,1739135437263,-500.0,0.00016899,2]
[352483945,1739135437272,-501.07658778,0.00016899,2]
[352483946,1739135437282,-500.0,0.00016899,2]
[352483947,1739135437292,-500.0,0.00016899,2]
[352483948,1739135437301,-500.0,0.00016899,2]
[352483949,1739135437311,-500.0,0.00016899,2]
[352483950,1739135437321,-500.0,0.00016899,2]
[352483951,1739135437331,-500.0,0.00016899,2]
[352483952,1739135437346,-500.0,0.00016899,2]
[352483953,1739135437356,-500.0,0.00016899,2]
[352483954,1739135437366,-500.0,0.00016899,2]
[352483955,1739135437377,-500.0,0.00016899,2]
[352483956,1739135437387,-500.0,0.00016899,2]
[352483957,1739135437396,-500.0,0.00016899,2]
[352483958,1739135437406,-500.0,0.00016899,2]
[352483959,1739135437417,-500.0,0.00016899,2]
[352483960,1739135437426,-500.0,0.00016899,2]
[352483961,1739135437437,-500.0,0.00016899,2]
[352483962,1739135437446,-502.18,0.00016899,2]
[352483963,1739135437457,-500.0,0.00016899,2]
[352483964,1739135437467,-500.0,0.00016899,2]
[352483965,1739135437476,-500.0,0.00016899,2]
[352483966,1739135437485,-500.0,0.00016899,2]
[352483967,1739135437496,-500.0,0.00016899,2]
[352483968,1739135437505,-500.0,0.00016899,2]
[352483969,1739135437514,-500.0,0.00016899,2]
[352483970,1739135437525,-500.0,0.00016899,2]
[352483971,1739135437534,-500.0,0.00016899,2]
[352483972,1739135437544,-500.0,0.00016899,2]
[352483973,1739135437553,-500.0,0.00016899,2]
[352483974,1739135437562,-500.0,0.00016899,2]
[352483975,1739135437573,-500.0,0.00016899,2]
[352483976,1739135437583,-500.0,0.00016899,2]
[352483977,1739135437592,-500.0,0.00016899,2]
[352483979,1739135437603,-500.0,0.00016899,2]
[352483981,1739135437612,-500.0,0.00016899,2]
[352483982,1739135437621,-500.0,0.00016899,2]
[352483984,1739135437630,-500.0,0.00016899,2]
[352483986,1739135437639,-500.0,0.00016899,2]
[352483987,1739135437649,-500.0,0.00016899,2]
[352483989,1739135437658,-500.0,0.00016899,2]
[352483990,1739135437668,-508.71198718,0.00016899,2]
[352483991,1739135437678,-500.0,0.00016899,2]
[352483992,1739135437688,-500.0,0.00016899,2]
[352483995,1739135437698,-502.20475898,0.00016899,2]
[352483996,1739135437707,-313.75424978,0.00016899,2]
[352483998,1739135437716,-500.0,0.00016899,2]
[352484000,1739135437725,-500.0,0.00016899,2]
[352484003,1739135437735,-500.0,0.00016899,2]
[352484005,1739135437744,-500.0,0.00016899,2]
[352484007,1739135437754,-500.0,0.00016899,2]
[352484009,1739135437763,-500.0,0.00016899,2]
[352484010,1739135437772,-500.0,0.00016899,2]
[352484011,1739135437781,-500.0,0.00016899,2]
[352484012,1739135437790,-500.0,0.00016899,2]
[352484013,1739135437799,-500.0,0.00016899,2]
[352484014,1739135437808,-500.0,0.00016899,2]
[352484015,1739135437819,-500.0,0.00016899,2]
[352484016,1739135437828,-500.0,0.00016899,2]
[352484017,1739135437837,-500.0,0.00016899,2]
[352484018,1739135437846,-500.0,0.00016899,2]
[352484019,1739135437857,-500.0,0.00016899,2]
[352484020,1739135437867,-500.0,0.00016899,2]
[352484021,1739135437877,-503.30325602,0.00016899,2]
[352484022,1739135437887,-500.0,0.00016899,2]
[352484023,1739135437896,-500.0,0.00016899,2]
[352484024,1739135437905,-500.0,0.00016899,2]
[352484025,1739135437915,-500.0,0.00016899,2]
[352484026,1739135437924,-234.98219584,0.00016899,2]
[352484027,1739135437933,-500.0,0.00016899,2]
[352484028,1739135437943,-500.0,0.00016899,2]
[352484029,1739135437953,-500.0,0.00016899,2]
[352484030,1739135437962,-500.0,0.00016899,2]
[352484031,1739135437971,-500.0,0.00016899,2]
[352484032,1739135437981,-500.0,0.00016899,2]
[352484033,1739135437991,-500.0,0.00016899,2]
[352484034,1739135438000,-500.0,0.00016899,2]
[352484035,1739135438010,-500.0,0.00016899,2]
[352484036,1739135438020,-500.0,0.00016899,2]
[352484037,1739135438029,-500.0,0.00016899,2]
[352484038,1739135438039,-500.0,0.00016899,2]
[352484039,1739135438048,-500.0,0.00016899,2]
[352484040,1739135438058,-500.0,0.00016899,2]
[352484041,1739135438067,-500.0,0.00016899,2]
[352484042,1739135438077,-500.0,0.00016899,2]
[352484043,1739135438086,-500.0,0.00016899,2]
[352484044,1739135438095,-500.0,0.00016899,2]
[352484045,1739135438105,-500.0,0.00016899,2]
[352484046,1739135438114,-1000.0,0.00016899,2]
[352484047,1739135438124,-346.72924889,0.00016899,2]
[352484048,1739135438133,-500.0,0.00016899,2]
[352484049,1739135438142,-500.0,0.00016899,2]
[352484050,1739135438151,-500.0,0.00016899,2]
[352484051,1739135438160,-547.5688147,0.00016899,2]
[352484052,1739135438170,-338.08054403,0.00016899,2]
[352484053,1739135438179,-500.0,0.00016899,2]
[352484054,1739135438188,-500.0,0.00016899,2]
[352484055,1739135438197,-3940.53,0.000169,31]
[352484056,1739135438207,-3940.53,0.000169,31]
[352484058,1739135438217,-3940.53,0.000169,31]
[352484060,1739135438226,-3940.53,0.000169,31]
[352484062,1739135438235,-3940.53,0.000169,31]
[352484064,1739135438245,-3940.53,0.000169,31]
[352484066,1739135438255,-3940.53,0.000169,31]
[352484068,1739135438264,-3940.53,0.000169,31]
[352484070,1739135438273,-3940.53,0.000169,31]
[352484072,1739135438282,-3940.53,0.000169,31]
[352484074,1739135438292,-3940.53,0.000169,31]
[352484076,1739135438302,-3940.53,0.000169,31]
[352484078,1739135438312,-3940.53,0.000169,31]
[352484080,1739135438321,-3940.53,0.000169,31]
[352484082,1739135438331,-3940.53,0.000169,31]
[352484084,1739135438343,-3940.53,0.000169,31]
[352484086,1739135438352,-300.0,0.00016927,2]
[352484088,1739135438361,-518.51248298,0.00016962,2]
[352484090,1739135438371,-324.28653745,0.00016962,2]
[352484095,1739135438412,-207.10730335,0.00016962,2]
[352484097,1739135438423,-358.06945221,0.00016964,2]
[352484100,1739135438432,-500.0,0.00016964,2]
[352484102,1739135438441,-517.42365454,0.00016964,2]
[352484105,1739135438451,-500.0,0.00016973,2]
[352484108,1739135438460,-565.16,0.00016973,2]
[352484109,1739135438470,-500.0,0.00016973,2]
[352484112,1739135438480,-957.93,0.00016973,2]
[352484114,1739135438489,-500.0,0.00016973,2]
[352484115,1739135438499,-650.0,0.00017,2]
[352484117,1739135438509,-215.04,0.00017036,2]
[352484119,1739135438518,-178.42,0.00017036,2]
[352484121,1739135438527,-500.0,0.00017036,2]
[352484123,1739135438537,-500.0,0.00017036,2]
[352484125,1739135438546,-584.57919886,0.00017036,2]
[352484126,1739135438555,-500.0,0.00017036,2]
[352484128,1739135438564,-500.0,0.00017036,2]
[352484129,1739135438573,-500.0,0.00017036,2]
[352484130,1739135438583,-304.76,0.00017036,2]
[352484131,1739135438592,-500.0,0.00017036,2]
[352484132,1739135438601,-219.076,0.0001706,2]
[352484133,1739135438611,-2556.069,0.0001706,2]
[352484134,1739135438620,-500.0,0.0001711,2]
[352484136,1739135438630,-443.79,0.0001711,2]
[352484138,1739135438639,-957.93,0.0001711,2]
[352484139,1739135438648,-500.0,0.0001711,2]
[352484141,1739135438658,-297.19,0.00017123,2]
[352484142,1739135438668,-500.0,0.00017173,2]
[352484143,1739135438677,-475.66531832,0.00017173,2]
[352484144,1739135438686,-500.0,0.00017173,2]
[352484145,1739135438696,-500.0,0.00017173,2]
[352484146,1739135438706,-500.0,0.00017173,2]
[352484147,1739135438716,-228.47,0.00017173,2]
[352484148,1739135438726,-449.2,0.0001721,2]
[352484149,1739135438735,-500.0,0.00017219,2]
[352484150,1739135438745,-1200.0,0.00017219,2]
[352484151,1739135438756,-1100.0,0.00017219,2]
[352484152,1739135438765,-500.0,0.00017247,2]
[352484153,1739135438775,-957.93,0.00017247,2]
[352484154,1739135438786,-500.0,0.00017247,2]
[352484155,1739135438795,-593.36,0.0001731,2]
[352484156,1739135438804,-500.0,0.0001731,2]
[352484157,1739135438813,-500.0,0.0001731,2]
[352484158,1739135438823,-500.0,0.00017384,2]
[352484159,1739135438832,-957.93,0.00017384,2]
[352484160,1739135438841,-500.0,0.00017384,2]
[352484161,1739135438851,-1000.0,0.00017391,2]
[352484162,1739135438859,-500.0,0.00017447,2]
[352484163,1739135438868,-500.0,0.00017521,2]
[352484164,1739135438878,-957.93,0.00017521,2]
[352484165,1739135438887,-180.74,0.00017521,2]
[352484166,1739135438896,-500.0,0.00017584,2]
[352484167,1739135438905,-152.0,0.00017607,3]
[352484168,1739135438915,-500.0,0.00017658,2]
[352484169,1739135438925,-957.93,0.00017658,2]
[352484170,1739135438935,-500.0,0.00017721,2]
[352484171,1739135438945,-500.0,0.00017795,2]
[352484172,1739135438955,-957.93,0.00017795,2]
[352484173,1739135438964,-1000.0,0.00017808,4]
[352484174,1739135438974,-1000.0,0.00017843,2]
[352484175,1739135438984,-500.0,0.00017858,2]
[352484176,1739135438993,-150.14,0.00017932,2]
[352484177,1739135439003,-957.93,0.00017932,2]
[352484178,1739135439012,-585.16511939,0.00017995,2]
[352484179,1739135439022,-5007.0,0.00018,5]
[352484180,1739135439031,-957.93,0.00018069,2]
[352484181,1739135439040,-1000.0,0.00018082,4]
[352484182,1739135439050,-2000.0,0.00018082,2]
[352484183,1739135439059,-200.0,0.00018082,2]
[352484184,1739135439068,-699.51,0.00018175,2]
[352484185,1739135439078,-957.93,0.00018206,2]
[352484186,1739135439087,-300.0,0.00018297,2]
[352484187,1739135439096,-500.0,0.00018315,2]
[352484188,1739135439105,-1200.0,0.00018315,2]
[352484189,1739135439114,-1100.0,0.00018315,2]
[352484190,1739135439124,-957.93,0.00018343,2]
[352484191,1739135439134,-1000.0,0.00018356,4]
[352484192,1739135439143,-1615.65528173,0.00018393,2]
[352484193,1739135439153,-957.93,0.0001848,2]
[352484194,1739135439162,-154.53,0.000186,2]
[352484195,1739135439171,-154.53,0.000186,2]
[352484196,1739135439181,-957.93,0.00018617,2]
[352484197,1739135439191,-1000.0,0.0001863,4]
[352484198,1739135439201,-150.0,0.0001874,2]
[352484199,1739135439210,-150.0,0.0001874,2]
[352484200,1739135439219,-150.0,0.0001874,2]
[352484201,1739135439228,-150.0,0.0001874,2]
[352484202,1739135439238,-152.0,0.00018749,4]
[352484203,1739135439247,-2000.0,0.00018751,2]
[352484204,1739135439256,-957.93,0.00018754,2]
[352484205,1739135439265,-150.0,0.00018767,2]
[352484206,1739135439275,-150.0,0.00018795,2]
[352484207,1739135439283,-150.0,0.00018823,2]
[352484208,1739135439292,-150.0,0.00018839,2]
[352484209,1739135439302,-150.0,0.00018851,2]
[352484210,1739135439311,-150.0,0.0001887,2]
[352484211,1739135439320,-150.0,0.00018879,2]
[352484212,1739135439329,-957.93,0.00018891,2]
[352484213,1739135439342,-1000.0,0.00018904,4]
[352484214,1739135439351,-150.0,0.00018906,2]
[352484215,1739135439359,-150.0,0.00018934,2]
[352484216,1739135439369,-150.0,0.00018938,2]
[352484217,1739135439379,-150.0,0.00018962,2]
[352484218,1739135439388,-150.0,0.0001899,2]
[352484219,1739135439397,-900.0,0.00019,20]
[352484220,1739135439406,-150.0,0.00019,2]
[352484221,1739135439416,-700.0,0.00019,2]
[352484222,1739135439426,-150.0,0.00019017,2]
[352484223,1739135439436,-957.93,0.00019028,2]
[352484224,1739135439445,-150.0,0.00019037,2]
[352484225,1739135439455,-150.0,0.00019045,2]
[352484226,1739135439463,-150.0,0.00019073,2]
[352484227,1739135439472,-150.0,0.00019101,2]
[352484228,1739135439481,-150.0,0.00019128,2]
[352484229,1739135439490,-150.0,0.0001913,2]
[352484230,1739135439499,-150.0,0.00019136,2]
[352484231,1739135439508,-150.0,0.00019156,2]
[352484232,1739135439518,-957.93,0.00019165,2]
[352484233,1739135439527,-1000.0,0.00019178,4]
[352484234,1739135439536,-150.0,0.00019178,2]
[352484235,1739135439546,-150.0,0.00019184,4]
[352484236,1739135439555,-150.0,0.00019212,4]
[352484237,1739135439565,-1916.0,0.00019225,2]
[352484238,1739135439575,-150.0,0.00019235,4]
[352484239,1739135439584,-150.0,0.00019239,4]
[352484240,1739135439593,-704.76,0.00019242,30]
[352484241,1739135439603,-150.0,0.0001926,4]
[352484242,1739135439612,-150.0,0.0001926,4]
[352484243,1739135439621,-150.0,0.00019267,4]
[352484244,1739135439631,-150.0,0.00019295,4]
[352484245,1739135439640,-957.93,0.00019302,3]
[352484246,1739135439650,-150.0,0.00019323,4]
[352484247,1739135439659,-150.0,0.00019335,4]
[352484248,1739135439668,-150.0,0.00019351,4]
[352484249,1739135439678,-150.0,0.00019378,4]
[352484250,1739135439688,-150.0,0.0001939,4]
[352484251,1739135439698,-150.0,0.00019406,4]
[352484252,1739135439707,-1200.0,0.00019411,2]
[352484253,1739135439717,-1100.0,0.00019411,2]
[352484254,1739135439726,-2000.0,0.0001942,2]
[352484255,1739135439735,-1916.0,0.00019424,2]
[352484256,1739135439745,-150.0,0.00019434,4]
[352484257,1739135439754,-150.0,0.00019434,4]
[352484258,1739135439764,-957.93,0.00019439,3]
[352484259,1739135439773,-1000.0,0.00019452,4]
[352484260,1739135439783,-150.0,0.00019462,4]
[352484261,1739135439792,-150.0,0.00019489,4]
[352484262,1739135439801,-150.0,0.00019517,4]
[352484263,1739135439811,-150.0,0.00019521,4]
[352484264,1739135439819,-150.0,0.00019533,4]
[352484265,1739135439828,-150.0,0.00019545,4]
[352484266,1739135439838,-150.0,0.00019573,4]
[352484267,1739135439847,-957.93,0.00019576,3]
[352484268,1739135439856,-1106.00025401,0.000196,2]
[352484269,1739135439866,-150.0,0.000196,4]
[352484270,1739135439875,-1916.0,0.00019622,2]
[352484271,1739135439884,-150.0,0.00019628,4]
[352484272,1739135439894,-150.0,0.00019632,4]
[352484273,1739135439903,-150.0,0.00019651,4]
[352484274,1739135439912,-150.0,0.00019656,4]
[352484275,1739135439921,-150.0,0.00019683,2]
[352484276,1739135439931,-150.0,0.00019684,4]
[352484277,1739135439941,-1500.0,0.000197,2]
[352484278,1739135439951,-3000.0,0.000197,2]
[352484279,1739135439960,-150.0,0.00019711,4]
[352484280,1739135439969,-957.93,0.00019713,3]
[352484281,1739135439979,-1000.0,0.00019726,4]
[352484282,1739135439988,-150.0,0.00019731,4]
[352484283,1739135439997,-150.0,0.00019739,4]
[352484284,1739135440007,-150.0,0.00019767,4]
[352484285,1739135440017,-150.0,0.00019781,4]
[352484286,1739135440027,-150.0,0.00019781,4]
[352484287,1739135440036,-214.0,0.0001979,2]
[352484288,1739135440045,-150.0,0.00019795,4]
[352484289,1739135440055,-717.6387,0.000198,2]
[352484290,1739135440064,-1916.0,0.0001982,2]
[352484291,1739135440074,-683.38992938,0.0001982,2]
[352484292,1739135440084,-150.0,0.00019822,4]
[352484293,1739135440094,-150.0,0.0001983,4]
[352484294,1739135440103,-3579.1831604,0.00019839,2]
[352484295,1739135440113,-3579.18316029,0.00019839,2]
[352484296,1739135440121,-957.99553543,0.0001985,3]
[352484297,1739135440131,-150.0,0.0001985,4]
[352484298,1739135440140,-150.0,0.00019878,4]
[352484299,1739135440149,-152.0,0.00019892,5]
[352484300,1739135440158,-204.00772584,0.000199,2]
[352484301,1739135440168,-150.0,0.00019906,4]
[352484302,1739135440178,-150.0,0.00019911,4]
[352484303,1739135440187,-150.0,0.0001993,4]
[352484304,1739135440199,-150.0,0.00019934,4]
[352484305,1739135440208,-150.0,0.00019961,4]
[352484306,1739135440217,-150.0,0.00019989,4]
[352484307,1739135440227,-675.73,0.00019999,3]
[352484308,1739135440238,-675.73,0.00019999,3]
[352484309,1739135440247,-675.73,0.00019999,3]
[352484310,1739135440256,-2000.0,0.0002,2]
[352484312,1739135440266,-187337.93716591,0.0002,3]
[352484315,1739135440286,-413.87648906,0.0002,3]
[352484317,1739135440297,-320.09861389,0.0002,3]
[352484320,1739135440308,-165133.33937015,0.0002,3]
[352484322,1739135440319,-7856.97850683,0.0002,3]
[352484323,1739135440334,-349.990002,0.0002,3]
[352484324,1739135440349,-281.6899999,0.0002,3]
[352484325,1739135440360,-9129.0,0.0002,3]
[352484326,1739135440370,-7409.00192669,0.0002,3]
[352484327,1739135440383,-106662.5922873,0.0002,3]
[352484329,1739135440394,-839.4699975,0.0002,3]
[352484332,1739135440404,-65889.02209188,0.0002,3]
[352484334,1739135440416,-281.749997,0.0002,3]
[352484335,1739135440427,-320.25724888,0.0002,3]
[352484336,1739135440439,-13329.7975864,0.0002,3]
[352484337,1739135440451,-135352.86776104,0.0002,3]
[352484338,1739135440460,-3563.85555234,0.0002,30]
[352484340,1739135440469,-1000.0,0.0002,4]
[352484342,1739135440478,-900.0,0.0002,21]
[352484344,1739135440487,-150.0,0.0002,5]
[352484346,1739135440496,-1500.0,0.0002,5]
[352484348,1739135440506,-150.0,0.0002,5]
[352484350,1739135440515,-2000.0,0.0002001,2]
[352484352,1739135440524,-150.0,0.00020017,4]
[352484354,1739135440533,-1916.0,0.00020018,2]
[352484356,1739135440542,-3575.656877,0.0002002,2]
[352484358,1739135440551,-1306.0,0.00020022,2]
[352484360,1739135440561,-150.0,0.00020029,4]
[352484362,1739135440569,-150.0,0.00020041,4]
[352484364,1739135440579,-150.0,0.00020045,4]
[352484366,1739135440587,-150.0,0.00020072,4]
[352484368,1739135440596,-2000.0,0.00020089,2]
[352484370,1739135440606,-150.0,0.000201,4]
[352484372,1739135440615,-2000.0,0.00020121,2]
[352484374,1739135440624,-500.0,0.00020121,2]
[352484376,1739135440633,-200.0,0.00020121,2]
[352484378,1739135440643,-150.0,0.00020128,4]
[352484380,1739135440651,-150.0,0.00020128,4]
[352484382,1739135440660,-150.0,0.00020156,4]
[352484384,1739135440669,-150.0,0.00020171,4]
[352484386,1739135440679,-150.0,0.00020183,4]
[352484388,1739135440689,-150.0,0.00020187,2]
[352484390,1739135440698,-150.0,0.00020211,4]
[352484392,1739135440707,-1916.0,0.00020216,2]
[352484394,1739135440716,-150.0,0.00020227,4]
[352484396,1739135440725,-150.0,0.00020239,4]
[352484398,1739135440734,-150.0,0.00020267,4]
[352484400,1739135440743,-1000.0,0.00020273,4]
[352484401,1739135440752,-150.0,0.00020294,4]
[352484403,1739135440761,-1038.60703853,0.00020301,2]
[352484405,1739135440770,-150.0,0.00020301,4]
[352484408,1739135440783,-150.0,0.00020301,4]
[352484410,1739135440792,-150.0,0.00020322,4]
[352484412,1739135440802,-150.0,0.00020326,4]
[352484414,1739135440811,-150.0,0.0002035,4]
[352484416,1739135440821,-892.6681538,0.00020351,2]
[352484418,1739135440830,-150.0,0.00020378,4]
[352484420,1739135440839,-150.0,0.00020405,4]
[352484422,1739135440848,-1916.0,0.00020415,2]
[352484424,1739135440858,-150.0,0.00020425,4]
[352484426,1739135440867,-150.0,0.00020432,4]
[352484428,1739135440876,-150.0,0.00020433,4]
[352484430,1739135440885,-699.51,0.00020439,2]
[352484432,1739135440895,-150.0,0.00020461,4]
[352484434,1739135440904,-150.0,0.00020489,4]
[352484436,1739135440914,-1200.0,0.00020507,2]
[352484438,1739135440926,-1100.0,0.00020507,2]
[352484440,1739135440936,-500.0,0.00020507,2]
[352484442,1739135440949,-150.0,0.00020517,4]
[352484444,1739135440958,-150.0,0.00020524,4]
[352484446,1739135440967,-150.0,0.00020544,4]
[352484448,1739135440977,-1000.0,0.00020547,4]
[352484450,1739135440987,-177.8,0.00020548,2]
[352484452,1739135440996,-297.19,0.00020548,2]
[352484454,1739135441006,-150.0,0.00020562,4]
[352484456,1739135441015,-150.0,0.00020572,4]
[352484458,1739135441025,-150.0,0.000206,4]
[352484460,1739135441034,-150.0,0.00020624,4]
[352484462,1739135441044,-150.0,0.00020628,4]
[352484464,1739135441054,-675.73,0.00020636,3]
[352484466,1739135441063,-1417.36,0.00020636,2]
[352484468,1739135441073,-7467.96311126,0.00020639,2]
[352484470,1739135441082,-150.0,0.00020655,4]
[352484472,1739135441092,-2000.0,0.00020677,2]
[352484474,1739135441101,-150.0,0.00020683,4]
[352484476,1739135441110,-150.0,0.00020692,4]
[352484478,1739135441121,-150.0,0.00020692,2]
[352484480,1739135441130,-159.0,0.000207,3]
[352484482,1739135441140,-19170.82718407,0.000207,3]
[352484492,1739135441221,-397.5599,8.836e-05,2]
[352484494,1739135441231,-313.22814879,0.00016802,2]
[352484496,1739135441241,-215.39341781,0.000207,3]
[352484498,1739135441253,-1208.50730025,0.000207,3]
[352484500,1739135441265,-5983.59142758,0.000207,3]
[352484502,1739135441277,-100116.77919996,0.000207,3]
[352484505,1739135441288,-31363.11580125,0.000207,3]
[352484507,1739135441300,-104804.90355714,0.000207,3]
[352484509,1739135441309,-6626.13391286,0.000207,3]
[352484511,1739135441320,-5225.40408642,0.000207,3]
[352484513,1739135441332,-2596.20000003,0.000207,3]
[352484516,1739135441346,-202474.3483352,0.000207,3]
[352484518,1739135441356,-53467.65686197,0.000207,3]
[352484520,1739135441365,-531.0418095,0.00020704,2]
[352484522,1739135441374,-150.0,0.00020711,4]
[352484524,1739135441383,-150.0,0.00020723,4]
[352484526,1739135441392,-150.0,0.00020739,4]
[352484528,1739135441401,-206.35618287,0.00020739,2]
[352484530,1739135441410,-181.37178361,0.00020739,2]
[352484532,1739135441420,-14656.71105496,0.00020739,2]
[352484533,1739135441429,-2000.0,0.00020758,2]
[352484536,1739135441441,-150.0,0.00020766,4]
[352484538,1739135441451,-2232.32701,0.00020767,2]
[352484540,1739135441460,-151.0,0.00020781,2]
[352484542,1739135441470,-151.0,0.00020781,2]
[352484544,1739135441479,-151.0,0.00020781,2]
[352484546,1739135441489,-151.0,0.00020781,2]
[352484548,1739135441498,-151.0,0.00020781,2]
[352484550,1739135441507,-151.0,0.00020781,2]
[352484552,1739135441516,-151.0,0.00020781,2]
[352484553,1739135441525,-151.0,0.00020782,2]
[352484556,1739135441535,-151.0,0.00020782,2]
[352484558,1739135441544,-151.0,0.00020782,2]
[352484560,1739135441554,-151.0,0.00020782,2]
[352484562,1739135441563,-151.0,0.00020782,2]
[352484564,1739135441572,-151.0,0.00020782,2]
[352484566,1739135441582,-208.126581,0.00020782,2]
[352484568,1739135441591,-150.0,0.00020794,4]
[352484570,1739135441601,-151.0,0.000208,2]
[352484572,1739135441610,-151.0,0.000208,2]
[352484574,1739135441619,-151.0,0.000208,2]